[Event "14th Margaryan Memorial-IM 2024"]
[Site "Yerevan"]
[Date "2024.01.15"]
[Round "8.1"]
[White "Babujian, Levon"]
[Black "Shuvalova, Polina"]
[Result "1/2-1/2"]
[ECO "D37"]
[WhiteElo "2346"]
[BlackElo "2475"]
[Annotator "TA"]
[PlyCount "190"]
[EventDate "2024.01.08"]
[EventType "tourn"]
[EventCountry "ARM"]
[SourceTitle "playchess.com"]
[Source "ChessBase"]
[SourceQuality "1"]
[TimeControl "40/5400+30:1800+30"]

{[%evp 28,190,20,0,0,0,0,0,0,-5,-5,-6,-6,-13,0,0,0,-15,-15,-41,0,-31,0,0,0,-12,-15,-15,-15,-12,-11,-15,-11,-16,-11,-21,-8,-17,-17,-443,-431,-444,-441,-444,-437,-379,-245,-245,-245,-246,-245,-646,-501,-484,-366,-1220,-2400,-888,-1533,-2320,-1599,-914,-1763,-2434,-2373,-2219,-1330,-2219,-2195,-2092,-1768,-2025,-1708,-1756,-1701,-1542,-998,-1000,-881,-905,-925,-964,-874,-823,-772,-5627,-4555,-1844,-1462,-29964,-29964,-29956,-5639,-3310,-3261,-29972,-29970,-29968,-29970,-29974,-29975,-29963,-29972,-29976,-29978,-29978,0,0,0,0,0,0,0,0,0,0,0,0,0,0,0,0,0,0,0,-492,-492,-492,-492,-492,-492,-500,-29,0,0,0,0,0,0,0,0,0,0,0,0,0,0,0,0,0,0,0,0,0,0,0,0,0,0,0,0,0,0,0,0]} 1. d4 {[%emt 0:04:29]} Nf6 {[%emt 0:00:04]} 2. c4 {[%emt 0:00:16]} e6 {[%emt 0:00:05]} 3. Nf3 {[%emt 0:00:12]} d5 {[%emt 0:00:05]} 4. Nc3 {[%emt 0:00:06]} Be7 {[%emt 0:00:08]} 5. Bf4 {[%emt 0:00:07]} O-O {[%emt 0:00:06]} 6. e3 {[%emt 0:00:02]} Nbd7 {[%emt 0:00:06]} 7. c5 {[%emt 0:00:23]} Nh5 {[%emt 0:00:07]} 8. Bd3 {[%emt 0:00:08]} Nxf4 {[%emt 0:00:05]} 9. exf4 {[%emt 0:00:04]} b6 {[%emt 0:00:06]} 10. b4 {[%emt 0:00:11]} a5 {[%emt 0:00:37]} 11. a3 {[%emt 0:00:12]} c6 {[%emt 0:00:03]} 12. O-O {[%emt 0:00:04]} Ba6 {[%emt 0:00:04]} 13. Bxa6 {[%emt 0:01:36]} Rxa6 {[%emt 0:00:03]} 14. Qe2 {[%emt 0:00:34]} Qa8 {[%emt 0:00:05]} 15. Rab1 {[%emt 0:04:43]} axb4 {[%emt 0:00:10]} 16. axb4 {[%emt 0:00:04]} Bf6 {[%emt 0:01:42]} 17. Rfc1 {[%emt 0:01:40]} Ra3 {[%emt 0:02:34]} 18. Ne5 {[%emt 0:11:36]} Nxe5 {[%emt 0:00:41]} 19. fxe5 {[%emt 0:00:51]} Bg5 {[%emt 0:09:53]} 20. Rc2 {[%emt 0:02:31]} bxc5 {[%emt 0:03:41]} 21. bxc5 {[%emt 0:01:03]} Rb8 {[%emt 0:01:14]} 22. Rcb2 {[%emt 0:06:01]} Rxb2 {[%emt 0:00:28]} 23. Qxb2 {[%emt 0:00:05]} h5 {[%emt 0:00:28]} (23... f6 $5 {[%cal Rf6e5]}) 24. Qc2 {[%emt 0:18:24]} g6 {[%emt 0:01:36]} 25. g3 {[%emt 0:04:07]} Qa5 {[%emt 0:03:03]} 26. Rb3 {[%emt 0:01:12]} Rxb3 {[%emt 0:04:45]} 27. Qxb3 {[%emt 0:00:30]} Qa1+ {[%emt 0:00:06]} 28. Kg2 {[%emt 0:00:06]} Qe1 {[%emt 0:00:14]} 29. Qc2 $1 {[%emt 0:05:25]} Bd2 {[%emt 0:05:35]} 30. Nd1 {[%emt 0:02:02]} g5 {[%emt 0:05:22]} 31. h3 {[%emt 0:01:02]} g4 {[%emt 0:00:41]} 32. hxg4 {[%emt 0:01:42]} hxg4 {[%emt 0:00:03]} 33. f4 $2 {[%emt 0:11:24][%mdl 8192]} (33. Kh2 $11 {and White stays safe.}) 33... Qe2+ $19 {[%emt 0:06:31]} (33... gxf3+ 34. Kxf3 Kg7 35. Kg2 $19) 34. Kg1 {[%emt 0:05:46]} Kg7 {[%emt 0:01:28]} 35. Nf2 {[%emt 0:02:01]} Qe3 $1 {[%emt 0:05:28]} 36. Kf1 {[%emt 0:00:42]} Bc3 {[%emt 0:00:38]} (36... Qxd4 37. Nxg4 Qa1+ 38. Kg2 $11) 37. Qd3 {[%emt 0:12:05]} Qxd3+ {[%emt 0:00:07]} (37... Qxd4 38. Qe2 $17) (37... Bxd4 38. Qxe3 Bxe3 39. Nd3) 38. Nxd3 {[%emt 0:00:04]} Bxd4 {[%emt 0:00:03]} 39. Nb4 $2 {[%emt 0:01:06]} (39. Ke2) 39... Bxc5 $19 {[%emt 0:00:06]} 40. Nxc6 {[%emt 0:00:00]} Kf8 {[%emt 0:00:00]} 41. Ke2 $2 {[%emt 0:15:39]} (41. Na5 Ke7 42. Ke2) 41... Ke8 $19 {[%emt 0:19:29]} 42. Na5 {[%emt 0:00:06]} Kd7 {[%emt 0:00:05]} 43. Nb3 {[%emt 0:02:05]} Kc6 {[%emt 0:00:09]} 44. Nd2 {[%emt 0:00:56]} Kb5 {[%emt 0:01:31]} 45. Kd3 {[%emt 0:00:30]} Bf2 {[%emt 0:00:07]} 46. Nf1 {[%emt 0:00:06]} Kc5 {[%emt 0:00:34]} 47. Ke2 {[%emt 0:00:18]} Bg1 $1 {[%emt 0:00:04]} 48. Kd3 {[%emt 0:00:03]} Kb4 {[%emt 0:04:09]} 49. Nd2 {[%emt 0:01:12]} Bf2 {[%emt 0:00:05]} 50. Nf1 {[%emt 0:00:12]} Kb3 {[%emt 0:00:06]} 51. Ke2 {[%emt 0:00:56]} Bg1 {[%emt 0:01:42]} 52. Kd3 {[%emt 0:00:11]} Kb2 {[%emt 0:00:03]} 53. Kd2 {[%emt 0:00:07]} Ka3 $1 {[%emt 0:19:59]} 54. Kc3 {[%emt 0:01:07]} Bf2 {[%emt 0:00:06]} 55. Kd3 {[%emt 0:01:29]} Kb4 {[%emt 0:00:25]} 56. Ke2 {[%emt 0:05:12]} Bg1 $1 {[%emt 0:01:10]} 57. Kd3 {[%emt 0:01:09]} Kb3 $1 {[%emt 0:00:04]} 58. Nd2+ {[%emt 0:03:36]} Kb2 $1 {[%emt 0:00:04]} 59. Nf1 {[%emt 0:00:49]} Kc1 $1 {[%emt 0:00:05]} 60. Nd2 {[%emt 0:00:46]} Kd1 {[%emt 0:00:06]} 61. Nb1 {[%emt 0:01:58]} Bf2 {[%emt 0:02:38]} 62. Nc3+ {[%emt 0:00:20]} Ke1 {[%emt 0:00:04]} 63. Ne2 {[%emt 0:02:02]} Bxg3 {[%emt 0:02:19]} 64. Nxg3 {[%emt 0:00:15]} Kf2 {[%emt 0:00:05]} 65. Ne2 {[%emt 0:01:22]} g3 {[%emt 0:00:13]} 66. f5 {[%emt 0:00:04]} g2 $2 {[%emt 0:02:01]} (66... exf5 {mates} 67. Nf4 g2 68. Nh3+ Kf1 69. Ke3 g1=Q+ 70. Nxg1 Kxg1 71. Kf3 d4 72. Ke2 Kg2 73. Kd2 f4 74. Ke2 f3+ 75. Kd3 f2 76. Kxd4 f1=Q 77. Kd5 Qa6 78. Kc5 Kf2 79. Kb4 Qe6 80. Kb5 Ke3 81. Ka5 Kd3 82. Kb5 Kd4 83. Kb4 Qb6+ 84. Ka3 Kc3 85. Ka4 Qb4#) 67. f6 $11 {[%emt 0:00:05]} g1=Q {[%emt 0:06:22]} (67... g1=R $2 68. Nxg1 Kxg1 69. Kd4 $19) (67... Kf3 $5 68. Ng1+ $8 Kf2 69. Nh3+ Kg3 $11) 68. Nxg1 {[%emt 0:00:14]} Kxg1 {[%emt 0:00:03]} 69. Kd4 {[%emt 0:00:40]} Kf2 {[%emt 0:00:04]} 70. Kc5 $1 {[%emt 0:00:02]} Ke3 {[%emt 0:00:06]} 71. Kd6 $1 {[%emt 0:00:02]} d4 {[%emt 0:00:03]} (71... Ke4 $5 72. Ke7 $8 d4 73. Kxf7 Kxe5 $11) 72. Ke7 $1 {[%emt 0:00:02]} d3 {[%emt 0:00:03]} 73. Kxf7 {[%emt 0:00:04]} d2 {[%emt 0:00:02]} 74. Kxe6 {[%emt 0:00:26]} d1=Q {[%emt 0:00:06]} (74... d1=B {is a self mate.} 75. f7 Bb3+ 76. Ke7 Ke4 77. f8=Q (77. f8=R Kxe5 78. Rf1 Bc2 $11) 77... Kd3 78. Kf6 Bd5 79. Qc5) 75. Ke7 $1 {[%emt 0:00:05]} Qd4 {[%emt 0:14:31]} 76. f7 $2 {[%emt 0:00:22][%mdl 8192]} (76. e6 $11 {and White has nothing to worry.}) 76... Qxe5+ $19 {[%emt 0:02:21]} 77. Kd7 {[%emt 0:00:12] [#]} Qf6 $1 {[%emt 0:01:02]} 78. Ke8 {[%emt 0:00:05]} Qe6+ {[%emt 0:00:11]} 79. Kf8 {[%emt 0:00:04] [#]} Kf4 $2 {[%emt 0:00:50]} (79... Ke2 $1 $19 80. Kg8 Qg6+ 81. Kh8 (81. Kf8 Kf3 $15) 81... Qf6+ 82. Kg8 Qe6) 80. Kg7 $11 {[%emt 0:00:07]} Qd7 {[%emt 0:00:44]} 81. Kh8 {[%emt 0:01:16]} Qe7 {[%emt 0:05:09]} 82. Kg8 {[%emt 0:00:14]} Qe6 {[%emt 0:00:09]} 83. Kg7 {[%emt 0:01:49]} Qe5+ {[%emt 0:00:05]} 84. Kg8 {[%emt 0:00:14]} Qd5 {[%emt 0:00:04]} 85. Kg7 {[%emt 0:00:31]} Qg5+ {[%emt 0:00:03]} 86. Kh7 {[%emt 0:00:18]} Qh5+ {[%emt 0:00:05]} 87. Kg8 {[%emt 0:00:26]} Qg4+ {[%emt 0:00:09]} 88. Kh7 {[%emt 0:00:06]} Qf5+ {[%emt 0:00:05]} 89. Kg8 $1 {[%emt 0:00:20]} Qg6+ {[%emt 0:00:03]} 90. Kh8 {[%emt 0:00:05]} Qf6+ {[%emt 0:00:05]} 91. Kg8 {[%emt 0:00:06]} Qg5+ {[%emt 0:00:03]} 92. Kh7 {[%emt 0:00:15]} Qf5+ {[%emt 0:00:06]} 93. Kg8 {[%emt 0:00:05]} Qe6 {[%emt 0:00:09]} 94. Kg7 {[%emt 0:00:08]} Qe7 {[%emt 0:00:11]} 95. Kg8 {[%emt 0:00:07]} Qg5+ {[%emt 0:00:07]} 1/2-1/2

[Event "14th Margaryan Memorial-IM 2024"]
[Site "Yerevan"]
[Date "2024.01.15"]
[Round "8.2"]
[White "Movahed, Sina"]
[Black "Davtyan, Arsen"]
[Result "1/2-1/2"]
[ECO "C78"]
[WhiteElo "2450"]
[BlackElo "2392"]
[Annotator "TA"]
[PlyCount "159"]
[EventDate "2024.01.08"]
[EventType "tourn"]
[EventCountry "ARM"]
[SourceTitle "playchess.com"]
[Source "ChessBase"]
[SourceQuality "1"]
[TimeControl "40/5400+30:1800+30"]

{[%evp 17,159,36,27,0,0,12,7,0,35,8,16,10,20,0,18,8,28,17,31,10,14,6,22,19,35,19,0,0,0,0,0,0,0,0,0,-38,-15,-36,0,-10,-20,-15,0,0,0,0,24,0,0,0,0,0,0,0,0,0,0,0,0,0,0,0,0,0,14,0,10,-198,-177,-205,-179,-390,-383,-508,-499,-498,-481,-517,-642,-605,-642,-616,-593,-722,-695,-1108,-1099,-1064,-1060,-968,-954,-1391,-945,-938,-919,-910,-902,-987,-1047,-771,-689,-673,-654,-1368,-1393,-1262,-180,-176,0,0,0,0,0,0,0,0,0,0,0,0,0,0,0,0,0,0,0,0,0,0,0,0,0,0,0,0,0,0,0,0,0,0,0,0]} 1. e4 {[%emt 0:03:42]} e5 {[%emt 0:00:04]} 2. Nf3 {[%emt 0:00:06]} Nc6 {[%emt 0:00:04]} 3. Bb5 {[%emt 0:00:05]} a6 {[%emt 0:00:05]} 4. Ba4 {[%emt 0:00:05]} Nf6 {[%emt 0:00:06]} 5. O-O {[%emt 0:00:05]} b5 {[%emt 0:00:04]} 6. Bb3 {[%emt 0:00:05]} Bc5 {[%emt 0:00:06]} 7. c3 {[%emt 0:00:07]} d6 {[%emt 0:00:05]} 8. d4 {[%emt 0:00:14]} Bb6 {[%emt 0:00:07]} 9. a4 {[%emt 0:00:13]} Rb8 {[%emt 0:00:06]} 10. a5 {[%emt 0:00:13] C78: Ruy Lopez: Archangelsk and Möller Defences.} Ba7 {[%emt 0:00:07]} (10... Nxa5 11. Rxa5 Bxa5 12. dxe5 $14) (10... Bxa5 $2 11. dxe5 (11. d5 Ne7 $18) 11... dxe5 12. Qxd8+ Kxd8 13. Bd5 (13. Bxf7 Bb6 $16) 13... Nxd5 14. exd5 $18) 11. h3 {[%emt 0:00:06]} O-O {[%emt 0:00:09]} 12. Be3 {[%emt 0:00:07]} Ra8 {[%emt 0:00:41]} 13. Nbd2 {[%emt 0:02:41]} h6 {[%emt 0:00:23]} 14. Re1 {[%emt 0:02:51]} Re8 {[%emt 0:00:54]} 15. Bc2 $1 {[%emt 0:01:47][%mdl 4] now scores much better than the old 15.Qc2.} Bb7 {[%emt 0:00:50]} 16. d5 {[%emt 0:01:52]} Nb8 {[%emt 0:02:07] [#]} 17. c4 $146 {[%emt 0:01:59]} ({Predecessor:} 17. Bxa7 Rxa7 18. b3 c5 19. Nf1 Nbd7 20. Ne3 g6 21. Qd2 Kh7 22. g4 h5 23. Kg2 {0-1 Arakhamia Grant,K (2456)-Bok,B (2488) Antwerp InventiChess 2011 (9)}) 17... c6 {[%emt 0:03:27]} 18. b3 {[%emt 0:04:49]} Bxe3 {[%emt 0:05:53]} 19. Rxe3 {[%emt 0:00:15]} cxd5 {[%emt 0:11:11]} 20. cxd5 {[%emt 0:00:48]} Re7 {[%emt 0:00:55]} 21. b4 {[%emt 0:09:38]} Rc7 {[%emt 0:02:10]} 22. Raa3 {[%emt 0:01:28]} Nbd7 {[%emt 0:06:50][%cal Bb8d7,Bd7f8,Bf8g6,Bg6e7,Be7d5][%mdl 32]} 23. Rac3 {[%emt 0:04:47]} Rac8 {[%emt 0:03:20]} 24. Nb1 {[%emt 0:01:49]} Nf8 {[%emt 0:11:10]} 25. Qd2 {[%emt 0:02:22]} Ng6 {[%emt 0:02:36]} 26. Bd3 {[%emt 0:01:16]} Qd7 {[%emt 0:13:30]} 27. Bf1 {[%emt 0:02:05]} Nh7 {[%emt 0:03:40]} 28. Rxc7 {[%emt 0:04:24]} Rxc7 {[%emt 0:01:16]} 29. Nc3 {[%emt 0:00:10]} f5 {[%emt 0:07:44]} 30. exf5 {[%emt 0:01:09]} Ne7 {[%emt 0:00:04]} 31. Nh4 {[%emt 0:02:18]} Nf6 {[%emt 0:01:45]} 32. Rg3 {[%emt 0:03:18]} (32. g4 {simplifies} Qc8 33. Ng6 Nexd5 34. Nxd5 Nxd5 35. Re1) 32... Rxc3 {[%emt 0:07:56][%mdl 64] Remove Defender, Decoy} 33. Qxc3 {[%emt 0:01:11]} (33. Rxc3 Ne4 34. Qe3 Nxc3 35. Qxc3 Kf7 $11) 33... Ne4 {[%emt 0:00:01] A dynamic duo of knights.} (33... Nfxd5 34. Qd2 Kf7 35. Rd3 $16) 34. Qb3 {[%emt 0:14:14]} Nxg3 {[%emt 0:01:13]} 35. Qxg3 {[%emt 0:00:09]} Nxd5 {[%emt 0:00:48]} 36. Be2 {[%emt 0:07:32]} Nf6 {[%emt 0:04:11]} 37. Kh2 {[%emt 0:07:18]} Bd5 {[%emt 0:06:21]} 38. Qe3 {[%emt 0:02:03]} Qb7 {[%emt 0:02:07]} 39. Ng6 {[%emt 0:01:15]} Kf7 {[%emt 0:01:08]} (39... Bxg2 $2 40. f3 $18) 40. g4 {[%emt 0:00:00]} Qc7 {[%emt 0:00:00]} 41. h4 {[%emt 0:22:23]} Bb7 {[%emt 0:23:20]} 42. f3 $2 {[%emt 0:10:52] [#]} (42. Bf3 $11) 42... Nd5 $1 $19 {[%emt 0:01:40][%csl LRb4,LRe3]} 43. Qa7 {[%emt 0:03:28][%cal Of3f4]} Nxb4 {[%emt 0:01:44] And now ...Nc6 would win.} 44. Bd1 $2 {[%emt 0:02:03]} (44. Qe3 {might work better.}) 44... Nc6 {[%emt 0:00:37]} 45. Bb3+ {[%emt 0:01:39]} Ke8 {[%emt 0:00:01]} 46. Qe3 {[%emt 0:00:01][%cal Of5f6]} Nd4 {[%emt 0:00:22]} (46... Nxa5 $2 {loses.} 47. Be6 $19) (46... Qxa5 47. f6 gxf6 48. Qxh6 $15) 47. f6 {[%emt 0:01:56]} Nxb3 {[%emt 0:01:25][%mdl 64] Remove Defender} (47... Qxa5 $2 48. fxg7 Kd7 49. g8=Q $18 (49. g8=B Nxf3+ 50. Kg3 Nd2 $11)) 48. Qxb3 {[%emt 0:00:10][%mdl 4096] Endgame KQB-KQN} Qf7 {[%emt 0:00:08] Inhibits Qe6+.} (48... Qxa5 $2 {leads to mate.} 49. Qe6+ Kd8 50. Qxd6+ Ke8 51. Qe7#) 49. Qc2 {[%emt 0:00:33]} gxf6 {[%emt 0:01:07]} (49... Bxf3 $2 50. Qc8#) 50. Qf5 {[%emt 0:01:36]} b4 {[%emt 0:02:44] Hoping for ...b3.} 51. Nh8 {[%emt 0:01:17]} Qc4 {[%emt 0:00:05]} 52. Qg6+ {[%emt 0:00:48]} Kd7 {[%emt 0:00:26]} 53. Qg7+ {[%emt 0:00:30]} Kc6 {[%emt 0:01:32] ...Qf1 would be deadly.} 54. Qe7 {[%emt 0:00:12]} Qd5 {[%emt 0:04:42]} 55. Nf7 {[%emt 0:00:48]} Kc5 {[%emt 0:00:00] White must now prevent ...Qd2+.} 56. Nxd6 {[%emt 0:02:13]} Qxd6 {[%emt 0:00:55]} 57. Qxb7 {[%emt 0:00:02] KQ-KQ} e4+ {[%emt 0:00:42]} 58. Kh3 {[%emt 0:00:34]} exf3 {[%emt 0:00:15]} 59. Qxf3 {[%emt 0:00:24]} Kb5 {[%emt 0:00:15]} 60. h5 {[%emt 0:00:51]} Kxa5 {[%emt 0:00:34]} 61. Qe3 {[%emt 0:00:06]} Qf8 $2 {[%emt 0:01:18]} (61... Qc7 {( -> ...Qc3)} 62. Qe6 Qc3+ 63. Kh4 b3 64. Qd5+ Ka4 65. Qd7+ Ka3 66. Qd6+ Kb2 67. Qxa6 Qe1+ 68. Kh3 Kc2) 62. Qc1 {[%emt 0:01:19] [#]} b3 $2 {[%emt 0:01:37]} (62... Kb6 $1 $19 {Strongly threatening ...Qc5.} 63. Qf4 a5 64. Qf2+ Qc5 65. Qxf6+ Kb5) 63. Qc7+ $1 $11 {[%emt 0:00:16] The position is equal.} Kb4 {[%emt 0:00:26] aiming for ...Qc5.} 64. Qb6+ {[%emt 0:00:42]} Kc3 {[%emt 0:00:02]} (64... Kc4 $5 65. Qe6+ $8 Kd4 66. Qxb3 Qg7 $11) 65. Qe3+ {[%emt 0:01:17]} Kc2 {[%emt 0:00:33]} 66. Qe2+ {[%emt 0:00:48]} Kb1 {[%emt 0:01:04]} 67. Qd1+ $1 {[%emt 0:01:00]} Ka2 {[%emt 0:00:01]} 68. Qe2+ {[%emt 0:00:14]} Kb1 {[%emt 0:00:57]} 69. Qd1+ $1 {[%emt 0:00:25]} Ka2 {[%emt 0:00:01]} 70. Qe2+ {[%emt 0:00:12]} b2 {[%emt 0:00:21]} 71. Qc4+ {[%emt 0:00:13]} Ka3 {[%emt 0:00:07]} 72. Qxa6+ {[%emt 0:00:44]} Kb3 {[%emt 0:00:03]} 73. Qd3+ {[%emt 0:00:23]} Kb4 {[%emt 0:00:10]} 74. Qc2 {[%emt 0:00:24]} Ka3 {[%emt 0:00:16]} 75. Qc3+ {[%emt 0:00:13]} Ka2 {[%emt 0:00:05]} 76. Qc4+ {[%emt 0:00:05]} Kb1 {[%emt 0:00:04]} 77. Qd3+ {[%emt 0:00:14]} Ka1 {[%emt 0:00:06]} 78. Qa6+ {[%emt 0:00:06]} Kb1 {[%emt 0:00:08] ...Qc5 is the strong threat.} 79. Qd3+ {[%emt 0:00:06]} Kc1 {[%emt 0:00:01]} 80. Qc3+ {[%emt 0:00:07] White happily takes the draw.   Weighted Error Value: White=0.48/Black=0.17 (very precise)} 1/2-1/2

[Event "14th Margaryan Memorial-IM 2024"]
[Site "Yerevan"]
[Date "2024.01.15"]
[Round "8.3"]
[White "Shahinyan, David"]
[Black "Ivanov, Sergey"]
[Result "1-0"]
[ECO "C01"]
[WhiteElo "2436"]
[BlackElo "2462"]
[Annotator "TA"]
[PlyCount "139"]
[EventDate "2024.01.08"]
[EventType "tourn"]
[EventCountry "ARM"]
[SourceTitle "playchess.com"]
[Source "ChessBase"]
[SourceQuality "1"]
[TimeControl "40/5400+30:1800+30"]

{[%evp 10,139,0,0,-3,0,-11,0,0,0,14,-14,-14,-14,-8,-27,-29,-30,-29,-42,-35,-31,-34,-76,-83,-78,-65,-69,-21,-22,0,0,0,0,0,0,0,-11,-11,-8,0,0,0,0,0,0,0,0,7,0,0,0,0,0,0,0,0,0,0,0,0,0,0,0,0,0,0,0,0,0,0,0,0,0,68,68,68,68,108,108,108,108,108,100,100,100,100,100,100,100,100,100,1014,1007,968,941,879,867,819,812,805,783,664,582,29967,29972,29968,29973,29970,29974,29974,29975,29975,29976,29976,29976,29975,29977,29977,29978,29978,29979,29978,29980,29980,29981,29982,29983,29983,29984,29985,0]} 1. e4 {[%emt 0:08:19]} e6 {[%emt 0:00:08]} 2. d4 {[%emt 0:00:19]} d5 {[%emt 0:00:09]} 3. Bd3 {[%emt 0:01:07][%cal Bf1d3,Bd3e4,Be4f3][%mdl 32]} dxe4 {[%emt 0:00:41]} 4. Bxe4 {[%emt 0:00:03]} Nf6 {[%emt 0:00:11]} 5. Bf3 {[%emt 0:00:03]} c5 {[%emt 0:00:15]} 6. Ne2 {[%emt 0:00:09][%cal Bg1e2,Be2d4,Bd4b3][%mdl 32]} Be7 {[%emt 0:00:25] C01: French: Exchange Variation.} 7. Be3 {[%emt 0:01:45]} O-O {[%emt 0:01:22]} 8. Nbc3 {[%emt 0:01:36]} cxd4 {[%emt 0:00:47] The position is equal.} 9. Nxd4 {[%emt 0:06:23]} e5 {[%emt 0:00:42]} 10. Nb3 {[%emt 0:02:11]} Nc6 {[%emt 0:00:55]} 11. O-O {[%emt 0:05:44]} Bf5 {[%emt 0:02:14]} 12. Bxc6 {[%emt 0:08:43]} bxc6 {[%emt 0:00:37]} 13. Qe2 {[%emt 0:00:07] [#]} Nd5 $146 {[%emt 0:06:06]} ({Predecessor:} 13... Qc7 14. Rad1 a5 15. f3 Rfb8 16. Na4 Rb4 17. Nbc5 Bxc5 18. Nxc5 Rxb2 19. f4 Rxc2 {0-1 Li,T (1822)-Tsay,V (2310) PNWCC Online blitz JP 8th 2020 (2)}) 14. Rfd1 {[%emt 0:01:52]} Nxc3 {[%emt 0:04:07]} 15. bxc3 {[%emt 0:00:16]} Qc7 {[%emt 0:00:24]} 16. Rd2 {[%emt 0:20:40]} c5 {[%emt 0:08:30]} 17. Qa6 {[%emt 0:01:46]} Rfd8 {[%emt 0:14:49]} 18. Rad1 {[%emt 0:02:10] [#]} Bxc2 {[%emt 0:01:39]} 19. Rxd8+ $11 {[%emt 0:00:20]} Rxd8 {[%emt 0:00:24]} 20. Rxd8+ {[%emt 0:00:38]} Qxd8 {[%emt 0:02:32]} 21. h3 {[%emt 0:06:17]} Qc7 {[%emt 0:26:07]} 22. Qb5 {[%emt 0:01:47] Black must now prevent Qe8+.} Bxb3 {[%emt 0:00:32]} 23. Qe8+ {[%emt 0:03:23]} Bf8 {[%emt 0:00:02]} 24. axb3 {[%emt 0:00:06][%mdl 4096] Endgame KQB-KQB} a5 {[%emt 0:05:40]} 25. c4 {[%emt 0:00:12]} f6 {[%emt 0:05:17]} 26. Qe6+ {[%emt 0:01:37]} Kh8 {[%emt 0:01:41]} 27. g4 {[%emt 0:05:29]} Qd6 {[%emt 0:01:54]} 28. Qf7 {[%emt 0:01:43]} h6 {[%emt 0:02:19]} 29. Qa7 {[%emt 0:01:16]} Kg8 {[%emt 0:04:31]} 30. Kg2 {[%emt 0:00:14]} Qd3 {[%emt 0:05:06]} 31. Qa8 {[%emt 0:02:34]} Kf7 {[%emt 0:00:12]} ({Much less strong is} 31... Qxb3 32. Bxc5 Qxc4 33. Bxf8 $16) 32. Qb7+ {[%emt 0:00:03]} Kg6 {[%emt 0:00:51]} 33. h4 {[%emt 0:03:00]} f5 {[%emt 0:02:22]} 34. Qc8 {[%emt 0:05:15][%csl LRc5,LRf8]} f4 {[%emt 0:02:32]} 35. Bxc5 {[%emt 0:07:08]} Bxc5 {[%emt 0:00:20]} 36. Qxc5 {[%emt 0:00:03] KQ-KQ} Qe2 {[%emt 0:01:13]} 37. Qc6+ {[%emt 0:00:43]} Kh7 $1 {[%emt 0:00:02]} 38. Qf3 {[%emt 0:00:49]} Qc2 {[%emt 0:00:01]} 39. h5 {[%emt 0:00:11]} Kh8 {[%emt 0:01:20]} 40. Qd5 {[%emt 0:00:00][%csl LRa5,LRe5]} e4 {[%emt 0:00:00] ...e3 is the strong threat.} 41. Qf5 {[%emt 0:20:30]} ({Much worse is} 41. Qxa5 e3 42. Qe1 Qe4+ 43. f3 Qc2+ 44. Kh3 Qxb3 $17) 41... f3+ {[%emt 0:18:10]} ({Better is} 41... a4 $11) 42. Kg3 $14 {[%emt 0:00:19] Hoping for Qc8+.} Qxb3 {[%emt 0:00:16]} 43. Qxe4 {[%emt 0:05:40]} a4 {[%emt 0:00:40]} 44. c5 {[%emt 0:01:07][%cal Bc4c5,Bc5c6][%mdl 32]} a3 {[%emt 0:00:29]} 45. c6 {[%emt 0:00:58] Threatening mate with Qe8+.} (45. Qxf3 Qxf3+ 46. Kxf3 a2 $19) 45... Qc3 {[%emt 0:08:08]} 46. Qxf3 {[%emt 0:02:53]} Qe5+ {[%emt 0:00:42]} 47. Kg2 {[%emt 0:00:43]} a2 {[%emt 0:00:43] [#]} 48. c7 $1 {[%emt 0:00:05]} Qxc7 {[%emt 0:00:19]} 49. Qa8+ {[%emt 0:00:03]} Kh7 {[%emt 0:00:06]} 50. Qxa2 {[%emt 0:00:03]} Qf4 $2 {[%emt 0:00:43][%mdl 8192] This move loses the game for Black.} (50... Qc6+ $16 51. f3 Qc5) 51. Qc2+ $1 $18 {[%emt 0:00:28]} Kg8 {[%emt 0:00:32]} 52. Qc8+ $1 {[%emt 0:00:03]} Kf7 {[%emt 0:00:08]} 53. Qd7+ {[%emt 0:01:04]} Kf6 {[%emt 0:01:11]} 54. Qd8+ $1 {[%emt 0:00:55]} Kf7 {[%emt 0:00:21]} 55. Qd5+ $1 {[%emt 0:00:04]} Ke7 {[%emt 0:01:02]} 56. Qb7+ $1 {[%emt 0:00:20]} Kf6 {[%emt 0:01:08]} 57. Qf3 {[%emt 0:02:58] White mates.} Kg5 {[%emt 0:00:06]} 58. Qxf4+ {[%emt 0:00:03]} Kxf4 {[%emt 0:00:06] K3P-KPP} 59. f3 {[%emt 0:00:01]} Ke5 {[%emt 0:00:14]} 60. Kg3 {[%emt 0:01:13]} Ke6 {[%emt 0:00:38]} 61. Kf4 {[%emt 0:00:33]} Kf6 {[%emt 0:00:00] [#]} 62. g5+ $1 {[%emt 0:01:11][%mdl 512]} hxg5+ {[%emt 0:00:20] KPP-KPP} 63. Kg4 {[%emt 0:00:06]} Ke6 {[%emt 0:01:35]} 64. Kxg5 {[%emt 0:00:03] KPP-KP} Kf7 {[%emt 0:00:07]} 65. Kf5 {[%emt 0:00:02]} Ke7 {[%emt 0:01:17] [#]} 66. Kg6 $1 {[%emt 0:00:03]} Kf8 {[%emt 0:00:05] [#]} 67. h6 $1 {[%emt 0:00:02]} gxh6 {[%emt 0:00:06]} 68. Kxh6 {[%emt 0:00:13]} Kf7 {[%emt 0:00:07]} 69. Kg5 {[%emt 0:00:04]} Kf8 {[%emt 0:06:42]} 70. f4 $2 {[%emt 0:07:42][%mdl 32768] Weighted Error Value: White=0.03 (flawless) /Black=0.18 (very precise) . Loss on time!?} (70. Kf6 {mates} Ke8 71. f4 Kd8 72. Kg7 Ke8 73. f5 Kd8 74. f6 Kc7 75. f7) 1-0